[Event "Late-Titled-Tuesday-Blitz-February-20-2024"]
[Site "Chess.com"]
[Date "2024.02.20"]
[Round "6"]
[White "MAGMAchess02"]
[Black "HajiyevKanan"]
[Result "0-1"]
[WhiteElo "2246"]
[BlackElo "2494"]
[TimeControl "180+1"]
[EndTime "15:05:33 PST"]
[Termination "HajiyevKanan won by checkmate"]

1. e4 {[%clk 0:03:00.9]} 1... c6 {[%clk 0:03:00.6]} 2. d4 {[%clk 0:02:57.6]}
2... d5 {[%clk 0:03:01.5]} 3. exd5 {[%clk 0:02:57.7]} 3... cxd5 {[%clk
0:03:02.4]} 4. Nf3 {[%clk 0:02:57.9]} 4... Nc6 {[%clk 0:03:02.3]} 5. Bb5 {[%clk
0:02:57]} 5... Bg4 {[%clk 0:03:02.6]} 6. h3 {[%clk 0:02:51.9]} 6... Bxf3 {[%clk
0:03:01.8]} 7. Qxf3 {[%clk 0:02:52.8]} 7... e6 {[%clk 0:03:02.5]} 8. c3 {[%clk
0:02:52.2]} 8... Nf6 {[%clk 0:03:02]} 9. O-O {[%clk 0:02:51.9]} 9... Bd6 {[%clk
0:03:01.7]} 10. Bg5 {[%clk 0:02:49.7]} 10... h6 {[%clk 0:03:02.1]} 11. Bh4
{[%clk 0:02:41.8]} 11... a6 {[%clk 0:03:00.6]} 12. Bd3 {[%clk 0:02:41.3]} 12...
Be7 {[%clk 0:02:58.8]} 13. Nd2 {[%clk 0:02:39.6]} 13... Nd7 {[%clk 0:02:58]} 14.
Bxe7 {[%clk 0:02:34.5]} 14... Qxe7 {[%clk 0:02:58.9]} 15. Qg3 {[%clk 0:02:33.6]}
15... O-O {[%clk 0:02:58.2]} 16. f4 {[%clk 0:02:30.7]} 16... f5 {[%clk
0:02:56.9]} 17. Rae1 {[%clk 0:02:25.1]} 17... Qf7 {[%clk 0:02:57.1]} 18. Nf3
{[%clk 0:02:22.3]} 18... Nf6 {[%clk 0:02:57.5]} 19. Ne5 {[%clk 0:02:19.5]} 19...
Nxe5 {[%clk 0:02:58]} 20. Rxe5 {[%clk 0:02:01.4]} 20... b5 {[%clk 0:02:44.3]}
21. Qe3 {[%clk 0:01:32.4]} 21... Rfe8 {[%clk 0:02:34]} 22. Re1 {[%clk
0:01:27.8]} 22... Ne4 {[%clk 0:02:33.1]} 23. Bxe4 {[%clk 0:01:27.5]} 23... fxe4
{[%clk 0:02:32.6]} 24. g4 {[%clk 0:01:23.4]} 24... Rf8 {[%clk 0:02:31.8]} 25.
Rf1 {[%clk 0:01:18.1]} 25... Rae8 {[%clk 0:02:27.4]} 26. b3 {[%clk 0:01:04.4]}
26... Qc7 {[%clk 0:02:20.1]} 27. Kg2 {[%clk 0:01:01.5]} 27... Qc6 {[%clk
0:02:15.4]} 28. Rc1 {[%clk 0:00:48.5]} 28... Rc8 {[%clk 0:02:11.7]} 29. Kg3
{[%clk 0:00:40.6]} 29... Rf7 {[%clk 0:02:11.1]} 30. c4 {[%clk 0:00:37.1]} 30...
bxc4 {[%clk 0:01:46]} 31. bxc4 {[%clk 0:00:38]} 31... Qa4 {[%clk 0:01:43]} 32.
cxd5 {[%clk 0:00:20]} 32... Rxc1 {[%clk 0:01:40]} 33. Qxc1 {[%clk 0:00:20.9]}
33... exd5 {[%clk 0:01:40]} 34. Qc8+ {[%clk 0:00:18.1]} 34... Kh7 {[%clk
0:01:36]} 35. Re8 {[%clk 0:00:14.4]} 35... Qa3+ {[%clk 0:01:32.2]} 36. Kh4
{[%clk 0:00:14]} 36... g5+ {[%clk 0:01:31.3]} 37. fxg5 {[%clk 0:00:12.1]} 37...
hxg5+ {[%clk 0:01:31.6]} 38. Kxg5 {[%clk 0:00:12.1]} 38... Qe3+ {[%clk
0:01:29.7]} 39. Kh4 {[%clk 0:00:10.1]} 39... Qf2+ {[%clk 0:01:29.1]} 40. Kh5
{[%clk 0:00:09.3]} 40... Qxd4 {[%clk 0:01:15.5]} 41. Qe6 {[%clk 0:00:06.7]}
41... Qg7 {[%clk 0:01:05.9]} 42. Rd8 {[%clk 0:00:04.7]} 42... Rf6 {[%clk
0:01:03.8]} 43. Qd7 {[%clk 0:00:03.1]} 43... Rh6# {[%clk 0:01:03.3]} 0-1

[Event "Late-Titled-Tuesday-Blitz-February-20-2024"]
[Site "Chess.com"]
[Date "2024.02.20"]
[Round "6"]
[White "jsdbv18"]
[Black "tptagain"]
[Result "0-1"]
[WhiteElo "2622"]
[BlackElo "2940"]
[TimeControl "180+1"]
[EndTime "15:05:34 PST"]
[Termination "tptagain won on time"]

1. d4 {[%clk 0:02:56.7]} 1... d6 {[%clk 0:02:59.6]} 2. e4 {[%clk 0:02:55.2]}
2... g6 {[%clk 0:02:59.3]} 3. c4 {[%clk 0:02:54.1]} 3... Bg7 {[%clk 0:02:59.5]}
4. Nc3 {[%clk 0:02:53.8]} 4... Nc6 {[%clk 0:02:58.7]} 5. Nge2 {[%clk 0:02:52.2]}
5... e5 {[%clk 0:02:57.4]} 6. Be3 {[%clk 0:02:52]} 6... f5 {[%clk 0:02:57.1]} 7.
dxe5 {[%clk 0:02:47.8]} 7... Nxe5 {[%clk 0:02:56.6]} 8. Nd4 {[%clk 0:02:38.2]}
8... Ne7 {[%clk 0:02:53.3]} 9. Be2 {[%clk 0:02:22.3]} 9... O-O {[%clk
0:02:52.3]} 10. Qd2 {[%clk 0:02:02.9]} 10... Ng4 {[%clk 0:02:18.3]} 11. Bxg4
{[%clk 0:01:59.2]} 11... fxg4 {[%clk 0:02:19.2]} 12. O-O-O {[%clk 0:01:54.4]}
12... Nc6 {[%clk 0:02:17.2]} 13. Nxc6 {[%clk 0:01:40.3]} 13... bxc6 {[%clk
0:02:18.1]} 14. Bd4 {[%clk 0:01:39.1]} 14... Bxd4 {[%clk 0:02:05.2]} 15. Qxd4
{[%clk 0:01:39.2]} 15... Be6 {[%clk 0:02:05.6]} 16. Rd2 {[%clk 0:01:23]} 16...
Qg5 {[%clk 0:02:03.5]} 17. Re1 {[%clk 0:01:06.9]} 17... c5 {[%clk 0:01:59.4]}
18. Qd3 {[%clk 0:01:02.4]} 18... Rxf2 {[%clk 0:01:56.5]} 19. e5 {[%clk
0:00:46.5]} 19... Rxd2 {[%clk 0:01:51.5]} 20. Qxd2 {[%clk 0:00:46.3]} 20...
Qxd2+ {[%clk 0:01:50.9]} 21. Kxd2 {[%clk 0:00:46.9]} 21... Bxc4 {[%clk
0:01:50.8]} 22. exd6 {[%clk 0:00:42.1]} 22... cxd6 {[%clk 0:01:50.9]} 23. b3
{[%clk 0:00:40.1]} 23... Bf7 {[%clk 0:01:47.8]} 24. Re7 {[%clk 0:00:36.4]} 24...
d5 {[%clk 0:01:43.9]} 25. Na4 {[%clk 0:00:25.3]} 25... c4 {[%clk 0:01:44]} 26.
bxc4 {[%clk 0:00:19.6]} 26... dxc4 {[%clk 0:01:44.9]} 27. Nc5 {[%clk 0:00:19]}
27... Rd8+ {[%clk 0:01:38.6]} 28. Kc3 {[%clk 0:00:18.7]} 28... a5 {[%clk
0:01:23]} 29. Ne4 {[%clk 0:00:18.6]} 29... Rd3+ {[%clk 0:01:20.6]} 30. Kc2
{[%clk 0:00:18.9]} 30... h5 {[%clk 0:01:17.2]} 31. Ng5 {[%clk 0:00:17.9]} 31...
Bd5 {[%clk 0:01:15.8]} 32. g3 {[%clk 0:00:10.6]} 32... Ra3 {[%clk 0:01:09.2]}
33. Kb2 {[%clk 0:00:08.9]} 33... Rd3 {[%clk 0:01:03.8]} 34. Nh7 {[%clk
0:00:08.9]} 34... Rf3 {[%clk 0:00:57.4]} 35. a4 {[%clk 0:00:03]} 35... c3+
{[%clk 0:00:53]} 36. Kc2 {[%clk 0:00:03.3]} 36... Bc6 {[%clk 0:00:52.7]} 37. Ng5
{[%clk 0:00:01.5]} 37... Bxa4+ {[%clk 0:00:52.8]} 0-1

[Event "Late-Titled-Tuesday-Blitz-February-20-2024"]
[Site "Chess.com"]
[Date "2024.02.20"]
[Round "6"]
[White "rickywsb"]
[Black "Vasily85"]
[Result "1-0"]
[WhiteElo "2348"]
[BlackElo "2453"]
[TimeControl "180+1"]
[EndTime "15:05:34 PST"]
[Termination "rickywsb won on time"]

1. d4 {[%clk 0:03:00.9]} 1... d5 {[%clk 0:02:56.2]} 2. Bf4 {[%clk 0:03:00.8]}
2... Nf6 {[%clk 0:02:54.3]} 3. e3 {[%clk 0:03:00.9]} 3... c5 {[%clk 0:02:50.8]}
4. Nf3 {[%clk 0:03:00.1]} 4... e6 {[%clk 0:02:47.2]} 5. Nbd2 {[%clk 0:02:59.7]}
5... Bd6 {[%clk 0:02:46.6]} 6. Ne5 {[%clk 0:02:57.2]} 6... O-O {[%clk
0:02:31.3]} 7. c3 {[%clk 0:02:56.3]} 7... b6 {[%clk 0:02:18]} 8. Bd3 {[%clk
0:02:54.1]} 8... Bb7 {[%clk 0:01:58.3]} 9. Qf3 {[%clk 0:02:52.7]} 9... Nc6
{[%clk 0:01:43.4]} 10. h4 {[%clk 0:02:38.3]} 10... Qc7 {[%clk 0:01:40.2]} 11.
Nxc6 {[%clk 0:02:27.5]} 11... Bxf4 {[%clk 0:01:38.1]} 12. Qxf4 {[%clk
0:02:23.4]} 12... Qxc6 {[%clk 0:01:32.1]} 13. h5 {[%clk 0:02:21.7]} 13... h6
{[%clk 0:01:10.3]} 14. g4 {[%clk 0:02:17.1]} 14... Ne4 {[%clk 0:01:04.5]} 15.
Nf3 {[%clk 0:02:06.9]} 15... cxd4 {[%clk 0:01:00.7]} 16. exd4 {[%clk 0:02:06.1]}
16... Qd6 {[%clk 0:00:50.9]} 17. Qe3 {[%clk 0:01:58.2]} 17... Qe7 {[%clk
0:00:49.2]} 18. Rg1 {[%clk 0:01:49.4]} 18... Ng5 {[%clk 0:00:48.7]} 19. Ne5
{[%clk 0:01:47.6]} 19... a5 {[%clk 0:00:17.3]} 20. f4 {[%clk 0:01:47.3]} 20...
Ne4 {[%clk 0:00:17.5]} 21. g5 {[%clk 0:01:47.3]} 21... hxg5 {[%clk 0:00:10.5]}
22. fxg5 {[%clk 0:01:47.4]} 22... Qc7 {[%clk 0:00:03.2]} 23. h6 {[%clk
0:01:31.5]} 23... g6 {[%clk 0:00:03.2]} 24. Qf4 {[%clk 0:01:11.4]} 24... Qe7
{[%clk 0:00:03.2]} 25. Ng4 {[%clk 0:01:05.9]} 25... Ba6 {[%clk 0:00:02.3]} 26.
Bxe4 {[%clk 0:01:04.2]} 26... dxe4 {[%clk 0:00:02.7]} 27. Nf6+ {[%clk
0:01:02.6]} 27... Kh8 {[%clk 0:00:03.4]} 28. Qe5 {[%clk 0:01:00.6]} 28... Rad8
{[%clk 0:00:01.1]} 29. Nd5+ {[%clk 0:00:56.7]} 29... f6 {[%clk 0:00:01.7]} 30.
Nxf6 {[%clk 0:00:45.3]} 30... Qd6 {[%clk 0:00:01.7]} 31. Qxe4 {[%clk 0:00:42.6]}
1-0

[Event "Late-Titled-Tuesday-Blitz-February-20-2024"]
[Site "Chess.com"]
[Date "2024.02.20"]
[Round "6"]
[White "aghasiyevkamal"]
[Black "Charodej1"]
[Result "1-0"]
[WhiteElo "2624"]
[BlackElo "2224"]
[TimeControl "180+1"]
[EndTime "15:05:38 PST"]
[Termination "aghasiyevkamal won by resignation"]

1. d4 {[%clk 0:03:00.9]} 1... Nf6 {[%clk 0:02:58.8]} 2. c4 {[%clk 0:03:00.8]}
2... e6 {[%clk 0:02:58.5]} 3. Nf3 {[%clk 0:02:58.3]} 3... c5 {[%clk 0:02:58]} 4.
d5 {[%clk 0:02:57.9]} 4... d6 {[%clk 0:02:57.9]} 5. Nc3 {[%clk 0:02:57.9]} 5...
exd5 {[%clk 0:02:57.8]} 6. cxd5 {[%clk 0:02:57.6]} 6... g6 {[%clk 0:02:56.3]} 7.
h3 {[%clk 0:02:57.1]} 7... Bg7 {[%clk 0:02:56]} 8. e4 {[%clk 0:02:57.1]} 8...
O-O {[%clk 0:02:55.4]} 9. Bd3 {[%clk 0:02:50.8]} 9... a6 {[%clk 0:02:55.3]} 10.
a4 {[%clk 0:02:50.3]} 10... Nfd7 {[%clk 0:02:46]} 11. O-O {[%clk 0:02:49.1]}
11... b6 {[%clk 0:02:32]} 12. Bf4 {[%clk 0:02:43.7]} 12... Qe7 {[%clk
0:02:31.1]} 13. Qd2 {[%clk 0:02:43.3]} 13... Bb7 {[%clk 0:02:25.8]} 14. Rfe1
{[%clk 0:02:38.2]} 14... Ne5 {[%clk 0:02:22.7]} 15. Nxe5 {[%clk 0:02:31.5]}
15... Bxe5 {[%clk 0:02:04.2]} 16. Bxe5 {[%clk 0:02:28]} 16... Qxe5 {[%clk
0:02:03.3]} 17. Nd1 {[%clk 0:02:27.1]} 17... Qd4 {[%clk 0:01:54.1]} 18. Qc3
{[%clk 0:02:23.7]} 18... Nd7 {[%clk 0:01:47.8]} 19. Qb3 {[%clk 0:01:57.9]} 19...
Ne5 {[%clk 0:01:26.2]} 20. Bf1 {[%clk 0:01:56.7]} 20... c4 {[%clk 0:01:25.7]}
21. Qc3 {[%clk 0:01:53.7]} 21... Qc5 {[%clk 0:01:25]} 22. b4 {[%clk 0:01:44.6]}
22... cxb3 {[%clk 0:01:22.6]} 23. Qxb3 {[%clk 0:01:44.7]} 23... f5 {[%clk
0:01:06.3]} 24. Ne3 {[%clk 0:01:28.7]} 24... fxe4 {[%clk 0:00:51.5]} 25. Rac1
{[%clk 0:01:25.3]} 25... Qa5 {[%clk 0:00:26.8]} 26. Red1 {[%clk 0:01:22.5]}
26... Rac8 {[%clk 0:00:24.4]} 27. Rb1 {[%clk 0:01:18.3]} 27... b5 {[%clk
0:00:19.4]} 28. axb5 {[%clk 0:01:12.6]} 28... axb5 {[%clk 0:00:19.6]} 29. Qxb5
{[%clk 0:01:06.4]} 29... Qxb5 {[%clk 0:00:18.3]} 30. Rxb5 {[%clk 0:01:06.4]}
30... Ba6 {[%clk 0:00:16.6]} 31. Rb4 {[%clk 0:01:05.8]} 31... Bxf1 {[%clk
0:00:12]} 32. Rxf1 {[%clk 0:01:06]} 32... Rc5 {[%clk 0:00:09.4]} 33. Rxe4 {[%clk
0:01:05.4]} 33... Rfc8 {[%clk 0:00:06.8]} 34. f4 {[%clk 0:01:04.8]} 34... Nf7
{[%clk 0:00:05.1]} 35. Ng4 {[%clk 0:01:02.2]} 35... Kg7 {[%clk 0:00:04.9]} 36.
f5 {[%clk 0:00:56.3]} 36... gxf5 {[%clk 0:00:03]} 37. Rxf5 {[%clk 0:00:55.7]}
37... Rc1+ {[%clk 0:00:03.3]} 38. Kh2 {[%clk 0:00:55.8]} 38... R8c4 {[%clk
0:00:03.2]} 39. Re7 {[%clk 0:00:55.3]} 1-0

[Event "Late-Titled-Tuesday-Blitz-February-20-2024"]
[Site "Chess.com"]
[Date "2024.02.20"]
[Round "6"]
[White "GMBenjaminBok"]
[Black "Abund"]
[Result "1-0"]
[WhiteElo "3007"]
[BlackElo "2788"]
[TimeControl "180+1"]
[EndTime "15:05:42 PST"]
[Termination "GMBenjaminBok won by resignation"]

1. c4 {[%clk 0:03:00.9]} 1... e6 {[%clk 0:03:00]} 2. g3 {[%clk 0:03:01.3]} 2...
d5 {[%clk 0:03:00.2]} 3. Bg2 {[%clk 0:03:02]} 3... Nf6 {[%clk 0:03:00.8]} 4. Nf3
{[%clk 0:03:02.4]} 4... d4 {[%clk 0:02:55.3]} 5. O-O {[%clk 0:03:00.6]} 5... Nc6
{[%clk 0:02:55.7]} 6. d3 {[%clk 0:02:59.1]} 6... Bc5 {[%clk 0:02:53.8]} 7. Nbd2
{[%clk 0:02:59]} 7... a5 {[%clk 0:02:52.4]} 8. Nb3 {[%clk 0:02:58.8]} 8... Qd6
{[%clk 0:02:47.2]} 9. Nxc5 {[%clk 0:02:42.3]} 9... Qxc5 {[%clk 0:02:47.3]} 10.
e3 {[%clk 0:02:43.2]} 10... O-O {[%clk 0:02:32.4]} 11. exd4 {[%clk 0:02:40.7]}
11... Nxd4 {[%clk 0:02:33.3]} 12. Nxd4 {[%clk 0:02:41]} 12... Qxd4 {[%clk
0:02:34.2]} 13. Be3 {[%clk 0:02:41.3]} 13... Qxb2 {[%clk 0:02:23.7]} 14. d4
{[%clk 0:02:40]} 14... Bd7 {[%clk 0:02:11.2]} 15. Qd3 {[%clk 0:02:29.7]} 15...
Qb4 {[%clk 0:01:35.8]} 16. Rfb1 {[%clk 0:02:28]} 16... Qa4 {[%clk 0:01:35.5]}
17. Rxb7 {[%clk 0:02:10.4]} 17... Rfc8 {[%clk 0:01:34]} 18. Qb3 {[%clk
0:02:04.3]} 18... Ne8 {[%clk 0:01:22.9]} 19. c5 {[%clk 0:01:53.8]} 19... Ra6
{[%clk 0:01:12.1]} 20. Qxa4 {[%clk 0:01:42.6]} 20... Bxa4 {[%clk 0:01:12.3]} 21.
Rab1 {[%clk 0:01:42.9]} 21... Kf8 {[%clk 0:00:35.8]} 22. Rb8 {[%clk 0:01:36.7]}
22... Rxb8 {[%clk 0:00:35.3]} 23. Rxb8 {[%clk 0:01:37.6]} 23... Ke7 {[%clk
0:00:30.1]} 24. Bb7 {[%clk 0:01:36.3]} 24... Ra7 {[%clk 0:00:27.6]} 25. c6
{[%clk 0:01:36.2]} 25... Bb5 {[%clk 0:00:15.4]} 26. d5 {[%clk 0:01:34.7]} 26...
Ra6 {[%clk 0:00:15.8]} 27. Bxa6 {[%clk 0:01:26.5]} 27... Bxa6 {[%clk 0:00:16.7]}
28. Bc5+ {[%clk 0:01:20.1]} 28... Nd6 {[%clk 0:00:17.1]} 29. Rb7 {[%clk
0:01:15.8]} 29... Kd8 {[%clk 0:00:15.3]} 30. Bxd6 {[%clk 0:01:14.2]} 30... cxd6
{[%clk 0:00:16]} 31. dxe6 {[%clk 0:01:01.1]} 31... fxe6 {[%clk 0:00:14.9]} 32.
Rxg7 {[%clk 0:01:01.1]} 32... d5 {[%clk 0:00:13.7]} 33. f4 {[%clk 0:00:59.8]}
33... Bb5 {[%clk 0:00:11.4]} 34. c7+ {[%clk 0:00:57.1]} 34... Kc8 {[%clk
0:00:11.9]} 35. Rxh7 {[%clk 0:00:55.3]} 35... a4 {[%clk 0:00:09.9]} 36. a3
{[%clk 0:00:54.9]} 36... Bd7 {[%clk 0:00:09.7]} 37. h4 {[%clk 0:00:51.8]} 37...
Kxc7 {[%clk 0:00:10.1]} 38. h5 {[%clk 0:00:52.4]} 38... Kd6 {[%clk 0:00:10.7]}
39. h6 {[%clk 0:00:52.7]} 39... e5 {[%clk 0:00:09]} 40. fxe5+ {[%clk 0:00:50.8]}
40... Kc6 {[%clk 0:00:09.6]} 41. Rxd7 {[%clk 0:00:50.5]} 41... Kxd7 {[%clk
0:00:09.4]} 42. h7 {[%clk 0:00:51.4]} 42... d4 {[%clk 0:00:10.3]} 43. h8=Q
{[%clk 0:00:51.4]} 1-0

[Event "Late-Titled-Tuesday-Blitz-February-20-2024"]
[Site "Chess.com"]
[Date "2024.02.20"]
[Round "6"]
[White "Sanan_Sjugirov"]
[Black "bipe137"]
[Result "1-0"]
[WhiteElo "2872"]
[BlackElo "2544"]
[TimeControl "180+1"]
[EndTime "15:05:44 PST"]
[Termination "Sanan_Sjugirov won on time"]

1. d4 {[%clk 0:03:00.9]} 1... d5 {[%clk 0:02:56.5]} 2. c4 {[%clk 0:03:00.1]}
2... e6 {[%clk 0:02:55.5]} 3. Nc3 {[%clk 0:02:59.5]} 3... a6 {[%clk 0:02:55.9]}
4. cxd5 {[%clk 0:02:59.3]} 4... exd5 {[%clk 0:02:56.8]} 5. Nf3 {[%clk
0:02:59.6]} 5... Nf6 {[%clk 0:02:56.6]} 6. Bg5 {[%clk 0:02:59.4]} 6... Be6
{[%clk 0:02:56.6]} 7. e3 {[%clk 0:02:59.8]} 7... Nbd7 {[%clk 0:02:56.9]} 8. Bd3
{[%clk 0:03:00.1]} 8... Bd6 {[%clk 0:02:57.4]} 9. O-O {[%clk 0:03:00.1]} 9... c6
{[%clk 0:02:57.8]} 10. Bf4 {[%clk 0:03:00]} 10... Qb8 {[%clk 0:02:57.9]} 11.
Bxd6 {[%clk 0:02:59.3]} 11... Qxd6 {[%clk 0:02:58.8]} 12. h3 {[%clk 0:02:59.4]}
12... O-O {[%clk 0:02:56.8]} 13. Qc2 {[%clk 0:02:58.5]} 13... Rfe8 {[%clk
0:02:55.6]} 14. Rab1 {[%clk 0:02:56.4]} 14... g6 {[%clk 0:02:55.3]} 15. b4
{[%clk 0:02:54.2]} 15... Nh5 {[%clk 0:02:52.7]} 16. Na4 {[%clk 0:02:52.7]} 16...
Ng7 {[%clk 0:02:47.4]} 17. Nc5 {[%clk 0:02:52.5]} 17... Rab8 {[%clk 0:02:47.5]}
18. a4 {[%clk 0:02:50.8]} 18... Bf5 {[%clk 0:02:43.9]} 19. Bxf5 {[%clk
0:02:46.1]} 19... Nxf5 {[%clk 0:02:44.8]} 20. Rfc1 {[%clk 0:02:40.1]} 20... Nb6
{[%clk 0:02:36.1]} 21. Nd2 {[%clk 0:02:29.9]} 21... Re7 {[%clk 0:02:14.2]} 22.
b5 {[%clk 0:02:29.5]} 22... cxb5 {[%clk 0:02:10.9]} 23. axb5 {[%clk 0:02:30.4]}
23... a5 {[%clk 0:02:10.8]} 24. Nd3 {[%clk 0:02:15.1]} 24... Qf6 {[%clk
0:01:54.9]} 25. Qa2 {[%clk 0:02:10.3]} 25... a4 {[%clk 0:01:49.2]} 26. Nf3
{[%clk 0:02:02.3]} 26... Nd6 {[%clk 0:01:44.8]} 27. Nf4 {[%clk 0:01:59.3]} 27...
Kg7 {[%clk 0:00:52]} 28. Nxd5 {[%clk 0:01:53.2]} 28... Qe6 {[%clk 0:00:49.5]}
29. Nb4 {[%clk 0:01:49.9]} 29... Qxa2 {[%clk 0:00:48.8]} 30. Nxa2 {[%clk
0:01:50.8]} 30... Nd5 {[%clk 0:00:37.3]} 31. b6 {[%clk 0:01:45.5]} 31... Ree8
{[%clk 0:00:30]} 32. Rc5 {[%clk 0:01:44.6]} 32... Ne7 {[%clk 0:00:28]} 33. Nc3
{[%clk 0:01:42.2]} 33... Ra8 {[%clk 0:00:25.5]} 34. Ne5 {[%clk 0:01:40.4]} 34...
a3 {[%clk 0:00:22.1]} 35. Ra1 {[%clk 0:01:39.7]} 35... Nec8 {[%clk 0:00:20.4]}
36. Nd5 {[%clk 0:01:34.5]} 36... Ne4 {[%clk 0:00:16.7]} 37. Rc7 {[%clk
0:01:31.9]} 37... Ned6 {[%clk 0:00:15.9]} 38. Rc3 {[%clk 0:01:29.2]} 38... Ra5
{[%clk 0:00:13.6]} 39. Nc7 {[%clk 0:01:27.3]} 39... Re7 {[%clk 0:00:13.7]} 40.
Rb3 {[%clk 0:01:21.8]} 40... a2 {[%clk 0:00:10.9]} 41. Rb2 {[%clk 0:01:21.9]}
41... f6 {[%clk 0:00:05.5]} 42. Nd3 {[%clk 0:01:20.7]} 42... Nc4 {[%clk
0:00:05.6]} 43. Rbxa2 {[%clk 0:01:21]} 43... Rxa2 {[%clk 0:00:06]} 44. Rxa2
{[%clk 0:01:21.9]} 44... N8xb6 {[%clk 0:00:06.3]} 45. Nb5 {[%clk 0:01:22.5]}
45... g5 {[%clk 0:00:06.1]} 46. Nc5 {[%clk 0:01:21.1]} 46... Nd5 {[%clk
0:00:05.9]} 47. Rc2 {[%clk 0:01:19.2]} 47... Ncb6 {[%clk 0:00:02.7]} 48. Nd6
{[%clk 0:01:19.4]} 48... Nb4 {[%clk 0:00:01.3]} 49. Rb2 {[%clk 0:01:19.2]} 49...
N6d5 {[%clk 0:00:01.4]} 50. Nf5+ {[%clk 0:01:19.5]} 1-0

[Event "Late-Titled-Tuesday-Blitz-February-20-2024"]
[Site "Chess.com"]
[Date "2024.02.20"]
[Round "6"]
[White "cukricek"]
[Black "GolfBeforeChess"]
[Result "1-0"]
[WhiteElo "2461"]
[BlackElo "2291"]
[TimeControl "180+1"]
[EndTime "15:05:45 PST"]
[Termination "cukricek won by resignation"]

1. g3 {[%clk 0:03:00.9]} 1... d5 {[%clk 0:02:59.5]} 2. Nf3 {[%clk 0:02:58]} 2...
c6 {[%clk 0:02:59.8]} 3. Bg2 {[%clk 0:02:58.4]} 3... Bf5 {[%clk 0:03:00.2]} 4.
O-O {[%clk 0:02:59]} 4... h6 {[%clk 0:03:00.6]} 5. d3 {[%clk 0:02:59.7]} 5... e6
{[%clk 0:03:01.1]} 6. Nc3 {[%clk 0:03:00.2]} 6... Nf6 {[%clk 0:03:01.2]} 7. Nd2
{[%clk 0:03:00.7]} 7... Be7 {[%clk 0:03:00.6]} 8. e4 {[%clk 0:03:01.2]} 8...
dxe4 {[%clk 0:03:00.3]} 9. dxe4 {[%clk 0:03:02.1]} 9... Bh7 {[%clk 0:03:00.4]}
10. f4 {[%clk 0:03:02]} 10... O-O {[%clk 0:02:59.3]} 11. Qe2 {[%clk 0:03:02]}
11... Nbd7 {[%clk 0:02:58.9]} 12. g4 {[%clk 0:03:02]} 12... a5 {[%clk
0:02:56.1]} 13. g5 {[%clk 0:03:00.4]} 13... hxg5 {[%clk 0:02:53]} 14. fxg5
{[%clk 0:03:01.3]} 14... Ne8 {[%clk 0:02:50.5]} 15. Nf3 {[%clk 0:02:58.2]} 15...
Nc5 {[%clk 0:02:33.8]} 16. Kh1 {[%clk 0:02:43.4]} 16... Qc7 {[%clk 0:02:31.7]}
17. Nd4 {[%clk 0:02:25.1]} 17... Qe5 {[%clk 0:02:17.9]} 18. Nf3 {[%clk
0:01:59.1]} 18... Qc7 {[%clk 0:02:14.1]} 19. Nh4 {[%clk 0:01:30]} 19... Rd8
{[%clk 0:02:01.6]} 20. Bf4 {[%clk 0:01:26.7]} 20... e5 {[%clk 0:01:54.3]} 21.
Be3 {[%clk 0:01:26.6]} 21... Ne6 {[%clk 0:01:52.9]} 22. Qh5 {[%clk 0:01:18.4]}
22... Nf4 {[%clk 0:01:39.1]} 23. Bxf4 {[%clk 0:00:57.3]} 23... exf4 {[%clk
0:01:39.2]} 24. Nf5 {[%clk 0:00:46.7]} 24... Bg6 {[%clk 0:01:31.7]} 25. Qg4
{[%clk 0:00:43.3]} 25... Qe5 {[%clk 0:01:26.7]} 26. h4 {[%clk 0:00:38.9]} 26...
Nd6 {[%clk 0:01:25.4]} 27. Nxe7+ {[%clk 0:00:34.9]} 27... Qxe7 {[%clk
0:01:23.8]} 28. h5 {[%clk 0:00:35.4]} 28... Bxe4 {[%clk 0:01:09.3]} 29. Rae1
{[%clk 0:00:35.8]} 29... Bxg2+ {[%clk 0:01:08.1]} 30. Kxg2 {[%clk 0:00:34.8]}
30... Qd7 {[%clk 0:01:07.5]} 31. Qxf4 {[%clk 0:00:32.7]} 31... Rfe8 {[%clk
0:00:46.1]} 32. h6 {[%clk 0:00:31.9]} 32... g6 {[%clk 0:00:40.9]} 33. Qf6 {[%clk
0:00:27.5]} 33... Nf5 {[%clk 0:00:32.5]} 34. h7+ {[%clk 0:00:14.4]} 1-0

[Event "Late-Titled-Tuesday-Blitz-February-20-2024"]
[Site "Chess.com"]
[Date "2024.02.20"]
[Round "6"]
[White "FredddieCroderg"]
[Black "KorolDimitriy75"]
[Result "0-1"]
[WhiteElo "2202"]
[BlackElo "2421"]
[TimeControl "180+1"]
[EndTime "15:05:49 PST"]
[Termination "KorolDimitriy75 won by resignation"]

1. e4 {[%clk 0:03:00.9]} 1... c5 {[%clk 0:02:59.8]} 2. Bc4 {[%clk 0:02:59.3]}
2... Nc6 {[%clk 0:02:58.9]} 3. d3 {[%clk 0:02:57.1]} 3... g6 {[%clk 0:02:58.7]}
4. Qf3 {[%clk 0:02:57.1]} 4... Ne5 {[%clk 0:02:54.7]} 5. Qg3 {[%clk 0:02:57]}
5... Nxc4 {[%clk 0:02:52.1]} 6. dxc4 {[%clk 0:02:57.3]} 6... Bg7 {[%clk
0:02:52.3]} 7. Nc3 {[%clk 0:02:56.6]} 7... d6 {[%clk 0:02:50.6]} 8. Be3 {[%clk
0:02:47.4]} 8... Be6 {[%clk 0:02:45.8]} 9. Nd5 {[%clk 0:02:37.9]} 9... Bxd5
{[%clk 0:02:34.8]} 10. exd5 {[%clk 0:02:36]} 10... Bxb2 {[%clk 0:02:34.1]} 11.
Rb1 {[%clk 0:02:36.3]} 11... Qa5+ {[%clk 0:02:27.8]} 12. Bd2 {[%clk 0:02:09.8]}
12... Qxa2 {[%clk 0:02:27.1]} 13. Rd1 {[%clk 0:02:06.5]} 13... Qxc4 {[%clk
0:02:23.6]} 14. c3 {[%clk 0:02:02.2]} 14... Nf6 {[%clk 0:01:58.6]} 15. Ne2
{[%clk 0:01:57]} 15... b5 {[%clk 0:01:03.2]} 16. Rb1 {[%clk 0:01:47.2]} 16...
Ba3 {[%clk 0:01:03]} 17. h4 {[%clk 0:01:37.3]} 17... h5 {[%clk 0:01:01.3]} 18.
Rh3 {[%clk 0:01:33.9]} 18... a5 {[%clk 0:01:00.4]} 19. Qh2 {[%clk 0:01:16.2]}
19... b4 {[%clk 0:00:57]} 20. Re3 {[%clk 0:01:11]} 20... Nxd5 {[%clk 0:00:53.3]}
21. Rf3 {[%clk 0:01:08.6]} 21... O-O {[%clk 0:00:52.8]} 22. Nf4 {[%clk 0:01:01]}
22... bxc3 {[%clk 0:00:50.9]} 23. Be3 {[%clk 0:00:48]} 23... c2 {[%clk
0:00:49.2]} 24. Rc1 {[%clk 0:00:47.1]} 24... Bxc1 {[%clk 0:00:45.4]} 25. Bxc1
{[%clk 0:00:45.4]} 25... a4 {[%clk 0:00:45]} 26. Nxh5 {[%clk 0:00:41.9]} 26...
Qe4+ {[%clk 0:00:43]} 27. Kf1 {[%clk 0:00:39.3]} 27... gxh5 {[%clk 0:00:39.6]}
28. Rg3+ {[%clk 0:00:31.7]} 28... Kh7 {[%clk 0:00:39.5]} 29. Rg5 {[%clk
0:00:30.8]} 29... Nf6 {[%clk 0:00:38.1]} 30. Qg3 {[%clk 0:00:15.4]} 30... Rg8
{[%clk 0:00:37.8]} 31. Kg1 {[%clk 0:00:13]} 31... c4 {[%clk 0:00:36.7]} 32. Kh2
{[%clk 0:00:12.4]} 32... Qe1 {[%clk 0:00:35.7]} 33. Qf4 {[%clk 0:00:09.1]} 33...
Qe4 {[%clk 0:00:33.3]} 34. Rxg8 {[%clk 0:00:06.4]} 34... Qxf4+ {[%clk
0:00:31.5]} 0-1